{"text_format":"3","workbook":"xlsx","n_sheets":2,"sheets":["Ostoslista","laskutoimitukset"],"not_rendered":{"defined_names":4},"read":"whole","date_system":"1900"}

{"sheet":"Ostoslista","index":0,"n_rows":21,"n_cols":13,"rows_kept":21,"merged":[[0,1,0,11],[0,12,1,12],[1,1,1,11],[4,12,5,12],[7,12,8,12],[10,12,11,12],[13,12,14,12]]}
[{"$nulls":12},{"$f":"laskutoimitukset!M9","v":"MAITOTUOTTEET YHTEENSÄ"}]
[null," Ostoslista"]
[null,null,"Valmis","OSTETTAVA ASIA","KAUPPA","LUOKKA","MÄÄRÄ","YKSIKKÖ","YKSIKKÖHINTA","YHTEENSÄ","KOMMENTTI",null,{"$f":"laskutoimitukset!L9","v":37}]
[null,null,1,"Appelsiineja","Kauppa","Hedelmät ja vihannekset",2,"kg",{"v":2.99,"d":"2.99 €"},{"$f":"IFERROR(Luettelo[MÄÄRÄ]*Luettelo[YKSIKKÖHINTA],\"\")","v":{"v":5.98,"d":"5.98 €"}},null,null,{"$f":"laskutoimitukset!M8","v":"HEDELMÄT JA VIHANNEKSET YHTEENSÄ"}]
[{"$nulls":3},"Omenoita","Puutarha","Hedelmät ja vihannekset",3,"kg",{"v":1.99,"d":"1.99 €"},{"$f":"IFERROR(Luettelo[MÄÄRÄ]*Luettelo[YKSIKKÖHINTA],\"\")","v":{"v":5.97,"d":"5.97 €"}},"Kuponki",null,{"$f":"laskutoimitukset!L8","v":45}]
[{"$nulls":3},"Banaaneja","Kauppa","Hedelmät ja vihannekset",1,"nippu",{"v":3.99,"d":"3.99 €"},{"$f":"IFERROR(Luettelo[MÄÄRÄ]*Luettelo[YKSIKKÖHINTA],\"\")","v":{"v":3.99,"d":"3.99 €"}}]
[{"$nulls":3},"Salaattia","Tori","Hedelmät ja vihannekset",2,"pää",{"v":2.29,"d":"2.29 €"},{"$f":"IFERROR(Luettelo[MÄÄRÄ]*Luettelo[YKSIKKÖHINTA],\"\")","v":{"v":4.58,"d":"4.58 €"}},null,null,{"$f":"laskutoimitukset!M7","v":"LIHATUOTTEET YHTEENSÄ"}]
[{"$nulls":3},"Tomaatteja","Tori","Hedelmät ja vihannekset",4,"kg",{"v":3.49,"d":"3.49 €"},{"$f":"IFERROR(Luettelo[MÄÄRÄ]*Luettelo[YKSIKKÖHINTA],\"\")","v":{"v":13.96,"d":"13.96 €"}},null,null,{"$f":"laskutoimitukset!L7","v":80}]
[{"$nulls":3},"Kurpitsa","Tori","Hedelmät ja vihannekset",2,"kpl",{"v":1.5,"d":"1.50 €"},{"$f":"IFERROR(Luettelo[MÄÄRÄ]*Luettelo[YKSIKKÖHINTA],\"\")","v":{"v":3,"d":"3.00 €"}}]
[{"$nulls":3},"Selleri","Kauppa","Hedelmät ja vihannekset",2,"nippu",{"v":1.99,"d":"1.99 €"},{"$f":"IFERROR(Luettelo[MÄÄRÄ]*Luettelo[YKSIKKÖHINTA],\"\")","v":{"v":3.98,"d":"3.98 €"}},null,null,{"$f":"laskutoimitukset!M6","v":"KALATUOTTEET YHTEENSÄ"}]
[{"$nulls":3},"Kurkku","Tori","Hedelmät ja vihannekset",1,"kg",{"v":2.29,"d":"2.29 €"},{"$f":"IFERROR(Luettelo[MÄÄRÄ]*Luettelo[YKSIKKÖHINTA],\"\")","v":{"v":2.29,"d":"2.29 €"}},null,null,{"$f":"laskutoimitukset!L6","v":109}]
[{"$nulls":3},"Herkkusieniä","Kauppa","Hedelmät ja vihannekset",0.5,"kg",{"v":2.25,"d":"2.25 €"},{"$f":"IFERROR(Luettelo[MÄÄRÄ]*Luettelo[YKSIKKÖHINTA],\"\")","v":{"v":1.125,"d":"1.13 €"}},"Isoja portobelloja"]
[{"$nulls":3},"Maitoa ","Kotiinkuljetus","Maitotuotteet",2,"l",{"v":3.99,"d":"3.99 €"},{"$f":"IFERROR(Luettelo[MÄÄRÄ]*Luettelo[YKSIKKÖHINTA],\"\")","v":{"v":7.98,"d":"7.98 €"}},null,null,{"$f":"laskutoimitukset!M3","v":"MUUT YHTEENSÄ"}]
[{"$nulls":3},"Juustoa","Kotiinkuljetus","Maitotuotteet",1,"kg",{"v":9.99,"d":"9.99 €"},{"$f":"IFERROR(Luettelo[MÄÄRÄ]*Luettelo[YKSIKKÖHINTA],\"\")","v":{"v":9.99,"d":"9.99 €"}},"Erilaisia leipäjuustoja",null,{"$f":"laskutoimitukset!L3","v":0}]
[{"$nulls":3},"Munia","Kotiinkuljetus","Maitotuotteet",2,"tusina",{"v":3.5,"d":"3.50 €"},{"$f":"IFERROR(Luettelo[MÄÄRÄ]*Luettelo[YKSIKKÖHINTA],\"\")","v":{"v":7,"d":"7.00 €"}}]
[{"$nulls":3},"Raejuustoa","Kotiinkuljetus","Maitotuotteet",1,"16 dl",{"v":3.89,"d":"3.89 €"},{"$f":"IFERROR(Luettelo[MÄÄRÄ]*Luettelo[YKSIKKÖHINTA],\"\")","v":{"v":3.89,"d":"3.89 €"}},null,null,{"$f":"laskutoimitukset!M4","v":"OSTOSLISTAN KOKONAISSUMMA"}]
[{"$nulls":3},"Kermaviiliä","Kotiinkuljetus","Maitotuotteet",1,"8 dl",{"v":2.99,"d":"2.99 €"},{"$f":"IFERROR(Luettelo[MÄÄRÄ]*Luettelo[YKSIKKÖHINTA],\"\")","v":{"v":2.99,"d":"2.99 €"}},null,null,{"$f":"OstoksetYhteensä","v":271}]
[{"$nulls":3},"Jogurttia","Kauppa","Maitotuotteet",1,"16 dl",{"v":4.99,"d":"4.99 €"},{"$f":"IFERROR(Luettelo[MÄÄRÄ]*Luettelo[YKSIKKÖHINTA],\"\")","v":{"v":4.99,"d":"4.99 €"}},"Kreikkalaista, hunajalla"]
[{"$nulls":3},"Jauhelihaa","Tori","Lihatuotteet",10,"kg",{"v":7.99,"d":"7.99 €"},{"$f":"IFERROR(Luettelo[MÄÄRÄ]*Luettelo[YKSIKKÖHINTA],\"\")","v":{"v":79.9,"d":"79.90 €"}},"Pekoniin käärittyjä fileitä"]
[{"$nulls":3},"Lohta","Kalatori","Kalatuotteet",6,"kg",{"v":8.99,"d":"8.99 €"},{"$f":"IFERROR(Luettelo[MÄÄRÄ]*Luettelo[YKSIKKÖHINTA],\"\")","v":{"v":53.94,"d":"53.94 €"}}]
[{"$nulls":3},"Jokiravunpyrstöjä","Kalatori","Kalatuotteet",5,"kg",{"v":10.99,"d":"10.99 €"},{"$f":"IFERROR(Luettelo[MÄÄRÄ]*Luettelo[YKSIKKÖHINTA],\"\")","v":{"v":54.95,"d":"54.95 €"}}]

{"sheet":"laskutoimitukset","index":1,"n_rows":21,"n_cols":13,"rows_kept":21,"hidden":true}
["*** Taulukon on pysyttävä piilotettuna ***"]
[]
[{"$nulls":10},{"$f":"SUM(Luettelo[YHTEENSÄ])-SUM(K6:K9)","v":{"v":0,"d":"0.00 €"}},{"$f":"ROUND(K3,0)","v":{"v":0,"d":"0 €"}},"MUUT YHTEENSÄ"]
[{"$nulls":11},{"$f":"ROUNDUP(SUM(Luettelo[YHTEENSÄ]),0)","v":{"v":271,"d":"271 €"}},"OSTOSLISTAN KOKONAISSUMMA"]
[]
[{"$nulls":4},{"$f":"IFERROR(INDEX(Luettelo[LUOKKA],MATCH(,COUNTIF($E$5:E5,Luettelo[LUOKKA]),)),\"\")","v":"Hedelmät ja vihannekset"},{"$f":"SUMIFS(Luettelo[YHTEENSÄ],Luettelo[LUOKKA],E6)","v":44.875},{"$f":"F6+ROW()/1000000","v":44.875006},{"$f":"LARGE($G$6:$G$21,1)","v":108.890009},{"$f":"MATCH(H6,$G$6:$G$21,0)","v":4},{"$f":"INDEX($E$6:$E$21,$I6)","v":"Kalatuotteet"},{"$f":"INDEX($F$6:$F$21,$I6)","v":{"v":108.89,"d":"108.89 €"}},{"$f":"ROUND(K6,0)","v":{"v":109,"d":"109 €"}},{"$f":"UPPER(J6) & \" YHTEENSÄ\"","v":"KALATUOTTEET YHTEENSÄ"}]
[{"$nulls":4},{"$f":"IFERROR(INDEX(Luettelo[LUOKKA],MATCH(,COUNTIF($E$5:E6,Luettelo[LUOKKA]),)),\"\")","v":"Maitotuotteet"},{"$f":"SUMIFS(Luettelo[YHTEENSÄ],Luettelo[LUOKKA],E7)","v":36.84},{"$f":"F7+ROW()/1000000","v":36.840007},{"$f":"LARGE($G$6:$G$21,2)","v":79.900008},{"$f":"MATCH(H7,$G$6:$G$21,0)","v":3},{"$f":"INDEX($E$6:$E$21,$I7)","v":"Lihatuotteet"},{"$f":"INDEX($F$6:$F$21,$I7)","v":{"v":79.9,"d":"79.90 €"}},{"$f":"ROUND(K7,0)","v":{"v":80,"d":"80 €"}},{"$f":"UPPER(J7) & \" YHTEENSÄ\"","v":"LIHATUOTTEET YHTEENSÄ"}]
[{"$nulls":4},{"$f":"IFERROR(INDEX(Luettelo[LUOKKA],MATCH(,COUNTIF($E$5:E7,Luettelo[LUOKKA]),)),\"\")","v":"Lihatuotteet"},{"$f":"SUMIFS(Luettelo[YHTEENSÄ],Luettelo[LUOKKA],E8)","v":79.9},79.900008,{"$f":"LARGE($G$6:$G$21,3)","v":44.875006},{"$f":"MATCH(H8,$G$6:$G$21,0)","v":1},{"$f":"INDEX($E$6:$E$21,$I8)","v":"Hedelmät ja vihannekset"},{"$f":"INDEX($F$6:$F$21,$I8)","v":{"v":44.875,"d":"44.88 €"}},{"$f":"ROUND(K8,0)","v":{"v":45,"d":"45 €"}},{"$f":"UPPER(J8) & \" YHTEENSÄ\"","v":"HEDELMÄT JA VIHANNEKSET YHTEENSÄ"}]
[{"$nulls":4},{"$f":"IFERROR(INDEX(Luettelo[LUOKKA],MATCH(,COUNTIF($E$5:E8,Luettelo[LUOKKA]),)),\"\")","v":"Kalatuotteet"},{"$f":"SUMIFS(Luettelo[YHTEENSÄ],Luettelo[LUOKKA],E9)","v":108.89},108.890009,{"$f":"LARGE($G$6:$G$21,4)","v":36.840007},{"$f":"MATCH(H9,$G$6:$G$21,0)","v":2},{"$f":"INDEX($E$6:$E$21,$I9)","v":"Maitotuotteet"},{"$f":"INDEX($F$6:$F$21,$I9)","v":{"v":36.84,"d":"36.84 €"}},{"$f":"ROUND(K9,0)","v":{"v":37,"d":"37 €"}},{"$f":"UPPER(J9) & \" YHTEENSÄ\"","v":"MAITOTUOTTEET YHTEENSÄ"}]
[{"$nulls":4},{"$f":"IFERROR(INDEX(Luettelo[LUOKKA],MATCH(,COUNTIF($E$5:E9,Luettelo[LUOKKA]),)),\"\")","v":""},{"$f":"SUMIFS(Luettelo[YHTEENSÄ],Luettelo[LUOKKA],E10)","v":0},1e-05]
[{"$nulls":4},{"$f":"IFERROR(INDEX(Luettelo[LUOKKA],MATCH(,COUNTIF($E$5:E10,Luettelo[LUOKKA]),)),\"\")","v":""},{"$f":"SUMIFS(Luettelo[YHTEENSÄ],Luettelo[LUOKKA],E11)","v":0},1.1E-5]
[{"$nulls":4},{"$f":"IFERROR(INDEX(Luettelo[LUOKKA],MATCH(,COUNTIF($E$5:E11,Luettelo[LUOKKA]),)),\"\")","v":""},{"$f":"SUMIFS(Luettelo[YHTEENSÄ],Luettelo[LUOKKA],E12)","v":0},1.2E-5]
[{"$nulls":4},{"$f":"IFERROR(INDEX(Luettelo[LUOKKA],MATCH(,COUNTIF($E$5:E12,Luettelo[LUOKKA]),)),\"\")","v":""},{"$f":"SUMIFS(Luettelo[YHTEENSÄ],Luettelo[LUOKKA],E13)","v":0},1.3e-05]
[{"$nulls":4},{"$f":"IFERROR(INDEX(Luettelo[LUOKKA],MATCH(,COUNTIF($E$5:E13,Luettelo[LUOKKA]),)),\"\")","v":""},{"$f":"SUMIFS(Luettelo[YHTEENSÄ],Luettelo[LUOKKA],E14)","v":0},1.4E-5]
[{"$nulls":4},{"$f":"IFERROR(INDEX(Luettelo[LUOKKA],MATCH(,COUNTIF($E$5:E14,Luettelo[LUOKKA]),)),\"\")","v":""},{"$f":"SUMIFS(Luettelo[YHTEENSÄ],Luettelo[LUOKKA],E15)","v":0},1.5E-5]
[{"$nulls":4},{"$f":"IFERROR(INDEX(Luettelo[LUOKKA],MATCH(,COUNTIF($E$5:E15,Luettelo[LUOKKA]),)),\"\")","v":""},{"$f":"SUMIFS(Luettelo[YHTEENSÄ],Luettelo[LUOKKA],E16)","v":0},1.6e-05]
[{"$nulls":4},{"$f":"IFERROR(INDEX(Luettelo[LUOKKA],MATCH(,COUNTIF($E$5:E16,Luettelo[LUOKKA]),)),\"\")","v":""},{"$f":"SUMIFS(Luettelo[YHTEENSÄ],Luettelo[LUOKKA],E17)","v":0},1.7E-5]
[{"$nulls":4},{"$f":"IFERROR(INDEX(Luettelo[LUOKKA],MATCH(,COUNTIF($E$5:E17,Luettelo[LUOKKA]),)),\"\")","v":""},{"$f":"SUMIFS(Luettelo[YHTEENSÄ],Luettelo[LUOKKA],E18)","v":0},1.8E-5]
[{"$nulls":4},{"$f":"IFERROR(INDEX(Luettelo[LUOKKA],MATCH(,COUNTIF($E$5:E18,Luettelo[LUOKKA]),)),\"\")","v":""},{"$f":"SUMIFS(Luettelo[YHTEENSÄ],Luettelo[LUOKKA],E19)","v":0},1.9e-05]
[{"$nulls":4},{"$f":"IFERROR(INDEX(Luettelo[LUOKKA],MATCH(,COUNTIF($E$5:E19,Luettelo[LUOKKA]),)),\"\")","v":""},{"$f":"SUMIFS(Luettelo[YHTEENSÄ],Luettelo[LUOKKA],E20)","v":0},2e-05]
[{"$nulls":4},{"$f":"IFERROR(INDEX(Luettelo[LUOKKA],MATCH(,COUNTIF($E$5:E20,Luettelo[LUOKKA]),)),\"\")","v":""},{"$f":"SUMIFS(Luettelo[YHTEENSÄ],Luettelo[LUOKKA],E21)","v":0},2.1e-05]